fUSD/lending_fUSD_20260311
["ID","MTS","AMOUNT","RATE_DAILY","PERIOD"]
[408227627,1773268240931,-500.0,0.00019973,2]
[408227628,1773268240939,-500.0,0.00019973,2]
[408227629,1773268240949,-150.0,0.00019973,2]
[408227630,1773268240958,-559.11659401,0.00019973,2]
[408227631,1773268240968,-575.89673691,0.00019973,2]
[408227632,1773268240976,-500.0,0.00019973,2]
[408227633,1773268240986,-500.0,0.00019973,2]
[408227634,1773268240995,-605.72903712,0.00019973,2]
[408227635,1773268241004,-500.0,0.00019973,2]
[408227636,1773268241013,-500.0,0.00019973,2]
[408227637,1773268241022,-500.0,0.00019973,2]
[408227638,1773268241032,-500.0,0.00019973,2]
[408227639,1773268241041,-163.79275589,0.00019973,2]
[408227640,1773268241050,-500.0,0.00019973,2]
[408227641,1773268241059,-500.0,0.00019973,2]
[408227642,1773268241068,-500.0,0.00019973,2]
[408227643,1773268241078,-500.0,0.00019973,2]
[408227644,1773268241087,-500.0,0.00019973,2]
[408227645,1773268241096,-500.0,0.00019973,2]
[408227646,1773268241105,-500.0,0.00019973,2]
[408227647,1773268241114,-500.0,0.00019973,2]
[408227648,1773268241124,-500.0,0.00019973,2]
[408227649,1773268241133,-500.0,0.00019973,2]
[408227650,1773268241141,-500.0,0.00019973,2]
[408227651,1773268241151,-500.0,0.00019973,2]
[408227652,1773268241159,-500.0,0.00019973,2]
[408227653,1773268241168,-500.0,0.00019973,2]
[408227654,1773268241178,-500.0,0.00019973,2]
[408227655,1773268241189,-500.0,0.00019973,2]
[408227656,1773268241198,-151.0,0.00019996,2]
[408227657,1773268241207,-500.0,0.00019999,2]
[408227658,1773268241215,-500.0,0.00019999,2]
[408227659,1773268241224,-500.0,0.00019999,2]
[408227660,1773268241233,-500.0,0.00019999,2]
[408227661,1773268241242,-500.0,0.00019999,2]
[408227662,1773268241252,-500.0,0.00019999,2]
[408227663,1773268241261,-506.85,0.00019999,2]
[408227664,1773268241270,-500.0,0.00019999,2]
[408227665,1773268241279,-500.0,0.00019999,2]
[408227666,1773268241288,-500.0,0.00019999,2]
[408227667,1773268241298,-500.0,0.00019999,2]
[408227668,1773268241307,-500.0,0.00019999,2]
[408227669,1773268241317,-500.0,0.00019999,2]
[408227670,1773268241326,-500.0,0.00019999,2]
[408227671,1773268241335,-500.0,0.00019999,2]
[408227672,1773268241346,-500.0,0.00019999,2]
[408227673,1773268241355,-500.0,0.00019999,2]
[408227674,1773268241365,-500.0,0.00019999,2]
[408227675,1773268241375,-151.0,0.00019999,2]
[408227676,1773268241384,-151.0,0.00019999,2]
[408227677,1773268241392,-151.0,0.00019999,2]
[408227678,1773268241401,-151.0,0.00019999,2]
[408227679,1773268241410,-151.0,0.00019999,2]
[408227680,1773268241419,-151.0,0.00019999,2]
[408227681,1773268241428,-172933.05164799,0.0002,2]
[408227682,1773268241569,-79961.27176821,0.0002,2]
[408227683,1773268241579,-151.0,0.0002,2]
[408227684,1773268241589,-151.0,0.0002,2]
[408227685,1773268241598,-151.0,0.0002,2]
[408227686,1773268241607,-160.0,0.0002,2]
[408227687,1773268241616,-151.0,0.0002,2]
[408227688,1773268241625,-151.0,0.0002,2]
[408227689,1773268241635,-1449.391515,0.0002,2]
[408227690,1773268241644,-1449.391515,0.0002,2]
[408227691,1773268241654,-1449.391515,0.0002,2]
[408227692,1773268241664,-1449.391515,0.0002,2]
[408227693,1773268241673,-177.877144,0.0002,2]
[408227694,1773268241683,-177.877144,0.0002,2]
[408227695,1773268241691,-177.877144,0.0002,2]
[408227696,1773268241700,-177.877144,0.0002,2]
[408227697,1773268241709,-151.0,0.0002,2]
[408227698,1773268241718,-151.0,0.0002,2]
[408227699,1773268241728,-200.0,0.0002,2]
[408227700,1773268241737,-151.0,0.0002,2]
[408227701,1773268241746,-151.0,0.0002,2]
[408227702,1773268241755,-717.042607,0.0002,2]
[408227703,1773268241765,-717.042607,0.0002,2]
[408227704,1773268241774,-355.617915,0.0002,2]
[408227705,1773268241783,-717.042607,0.0002,2]
[408227706,1773268241793,-355.617915,0.0002,2]
[408227707,1773268241802,-717.042607,0.0002,2]
[408227708,1773268241813,-355.617915,0.0002,2]
[408227709,1773268241822,-355.617915,0.0002,2]
[408227710,1773268241832,-3102.672497,0.0002,2]
[408227711,1773268241841,-1158.518815,0.0002,2]
[408227712,1773268241850,-1158.518815,0.0002,2]
[408227713,1773268241859,-3102.672497,0.0002,2]
[408227714,1773268241868,-1158.518815,0.0002,2]
[408227715,1773268241877,-3102.672497,0.0002,2]
[408227716,1773268241888,-1158.518815,0.0002,2]
[408227717,1773268241896,-3102.672497,0.0002,2]
[408227718,1773268241906,-218.779312,0.0002,2]
[408227719,1773268241915,-218.779312,0.0002,2]
[408227720,1773268241924,-218.779312,0.0002,2]
[408227721,1773268241933,-218.779312,0.0002,2]
[408227722,1773268241942,-151.0,0.0002,2]
[408227723,1773268241952,-952.490235,0.0002,2]
[408227724,1773268241963,-2253.089213,0.0002,2]
[408227725,1773268241975,-952.490235,0.0002,2]
[408227726,1773268241986,-2253.089213,0.0002,2]
[408227727,1773268241996,-952.490235,0.0002,2]
[408227728,1773268242004,-2253.089213,0.0002,2]
[408227729,1773268242013,-952.490235,0.0002,2]
[408227730,1773268242022,-2253.089213,0.0002,2]
[408227731,1773268242031,-151.0,0.0002,2]
[408227732,1773268242041,-151.0,0.0002,2]
[408227733,1773268242050,-200.0,0.0002,2]
[408227734,1773268242059,-151.0,0.0002,2]
[408227735,1773268242068,-151.0,0.0002,2]
[408227736,1773268242077,-151.0,0.0002,2]
[408227737,1773268242086,-151.0,0.0002,2]
[408227738,1773268242095,-151.0,0.0002,2]
[408227739,1773268242104,-275.453441,0.0002,2]
[408227740,1773268242113,-200.0,0.0002,2]
[408227741,1773268242122,-1000.0,0.0002,2]
[408227742,1773268242131,-498.0,0.00020009,2]
[408227743,1773268242141,-852.0,0.00020009,2]
[408227744,1773268242150,-500.0,0.00020009,2]
[408227745,1773268242159,-586.0,0.00020019,5]
[408227746,1773268242168,-360.19591819,0.00020028,2]
[408227747,1773268242177,-498.0,0.00020063,2]
[408227748,1773268242187,-852.0,0.00020063,2]
[408227749,1773268242196,-500.0,0.00020063,2]
[408227750,1773268242206,-586.0,0.00020074,5]
[408227751,1773268242214,-168.0,0.00020095,2]
[408227752,1773268242223,-168.0,0.00020108,2]
[408227753,1773268242232,-168.0,0.0002011,2]
[408227754,1773268242242,-151.0,0.00020118,2]
[408227755,1773268242252,-151.0,0.00020118,2]
[408227756,1773268242261,-151.0,0.00020118,2]
[408227757,1773268242270,-151.0,0.00020118,2]
[408227758,1773268242281,-151.0,0.00020118,2]
[408227759,1773268242293,-498.0,0.00020118,2]
[408227760,1773268242302,-852.0,0.00020118,2]
[408227761,1773268242311,-281.95112934,0.00020118,2]
[408227762,1773268242320,-586.0,0.00020129,5]
[408227763,1773268242331,-151.0,0.00020129,2]
[408227764,1773268242340,-952.490235,0.00020129,2]
[408227765,1773268242349,-2253.089213,0.00020129,2]
[408227766,1773268242358,-952.490235,0.00020129,2]
[408227767,1773268242367,-2253.089213,0.00020129,2]
[408227768,1773268242377,-952.490235,0.00020129,2]
[408227769,1773268242386,-2253.089213,0.00020129,2]
[408227770,1773268242396,-952.490235,0.00020129,2]
[408227771,1773268242407,-2253.089213,0.00020129,2]
[408227772,1773268242416,-151.0,0.00020129,2]
[408227773,1773268242427,-151.0,0.00020129,2]
[408227774,1773268242437,-498.0,0.00020173,2]
[408227775,1773268242448,-852.0,0.00020173,2]
[408227776,1773268242457,-209.07,0.00020173,2]
[408227777,1773268242467,-586.0,0.00020184,5]
[408227778,1773268242476,-200.0,0.000202,2]
[408227779,1773268242487,-200.0,0.000202,2]
[408227780,1773268242498,-3724.0,0.00020207,2]
[408227781,1773268242510,-498.0,0.00020228,2]
[408227782,1773268242521,-852.0,0.00020228,2]
[408227783,1773268242532,-533.36,0.00020231,2]
[408227784,1773268242542,-168.0,0.00020232,2]
[408227785,1773268242553,-586.0,0.00020238,5]
[408227786,1773268242563,-168.0,0.00020246,2]
[408227787,1773268242574,-1000.0,0.00020274,2]
[408227788,1773268242585,-498.0,0.00020283,2]
[408227789,1773268242595,-852.0,0.00020283,2]
[408227790,1773268242605,-586.0,0.00020293,5]
[408227791,1773268242615,-498.0,0.00020337,2]
[408227792,1773268242624,-852.0,0.00020337,2]
[408227793,1773268242634,-586.0,0.00020348,5]
[408227794,1773268242644,-1266.0,0.00020359,2]
[408227795,1773268242654,-833.93,0.00020362,2]
[408227796,1773268242664,-498.0,0.00020392,2]
[408227797,1773268242674,-852.0,0.00020392,2]
[408227798,1773268242684,-200.0,0.00020402,2]
[408227799,1773268242693,-200.0,0.00020402,2]
[408227800,1773268242702,-586.0,0.00020403,5]
[408227801,1773268242711,-1158.518815,0.0002041,2]
[408227802,1773268242720,-1158.518815,0.0002041,2]
[408227803,1773268242729,-1158.518815,0.0002041,2]
[408227804,1773268242739,-1158.518815,0.0002041,2]
[408227805,1773268242748,-218.779312,0.0002041,2]
[408227806,1773268242757,-218.779312,0.0002041,2]
[408227807,1773268242766,-218.779312,0.0002041,2]
[408227808,1773268242776,-218.779312,0.0002041,2]
[408227809,1773268242785,-168.0,0.0002041,2]
[408227810,1773268242794,-1000.0,0.00020421,2]
[408227811,1773268242803,-503.06273369,0.00020421,2]
[408227812,1773268242812,-1000.0,0.00020421,2]
[408227813,1773268242821,-1000.0,0.00020421,2]
[408227814,1773268242830,-1000.0,0.00020421,2]
[408227815,1773268242839,-1000.0,0.00020421,2]
[408227816,1773268242848,-1000.0,0.00020421,2]
[408227817,1773268242858,-498.0,0.00020447,2]
[408227818,1773268242867,-852.0,0.00020447,2]
[408227819,1773268242875,-209.07,0.00020447,2]
[408227820,1773268242884,-586.0,0.00020458,5]
[408227821,1773268242893,-168.0,0.00020467,2]
[408227822,1773268242901,-168.0,0.00020487,2]
[408227823,1773268242911,-498.0,0.00020502,2]
[408227824,1773268242920,-852.0,0.00020502,2]
[408227825,1773268242931,-533.36,0.00020505,2]
[408227826,1773268242941,-586.0,0.00020512,5]
[408227827,1773268242950,-1000.0,0.00020521,2]
[408227828,1773268242960,-1000.0,0.00020521,2]
[408227829,1773268242970,-1000.0,0.00020521,2]
[408227830,1773268242979,-1000.0,0.00020521,2]
[408227831,1773268242989,-1000.0,0.00020521,2]
[408227832,1773268242999,-911.2220305,0.00020521,2]
[408227833,1773268243010,-782.45803307,0.00020521,2]
[408227834,1773268243019,-1000.0,0.00020521,2]
[408227835,1773268243029,-1000.0,0.00020521,2]
[408227836,1773268243037,-1000.0,0.00020521,2]
[408227837,1773268243047,-223.49735751,0.00020521,2]
[408227838,1773268243055,-1000.0,0.00020521,2]
[408227839,1773268243064,-1000.0,0.00020521,2]
[408227840,1773268243073,-1000.0,0.00020521,2]
[408227841,1773268243082,-218.24578885,0.00020521,2]
[408227842,1773268243091,-910.01741187,0.00020521,2]
[408227843,1773268243100,-1000.0,0.00020521,2]
[408227844,1773268243109,-500.0,0.00020521,2]
[408227845,1773268243119,-1000.0,0.00020521,2]
[408227846,1773268243128,-1000.0,0.00020521,2]
[408227847,1773268243136,-1000.0,0.00020521,2]
[408227848,1773268243146,-1000.0,0.00020521,2]
[408227849,1773268243155,-1000.0,0.00020521,2]
[408227850,1773268243164,-1000.0,0.00020521,2]
[408227851,1773268243173,-1000.0,0.00020521,2]
[408227852,1773268243182,-500.96095128,0.00020521,2]
[408227853,1773268243191,-1000.0,0.00020521,2]
[408227854,1773268243200,-1000.0,0.00020521,2]
[408227855,1773268243209,-1000.0,0.00020521,2]
[408227856,1773268243218,-1000.0,0.00020521,2]
[408227857,1773268243227,-1000.0,0.00020521,2]
[408227858,1773268243236,-1000.0,0.00020521,2]
[408227859,1773268243244,-501.32556876,0.00020521,2]
[408227860,1773268243253,-1000.0,0.00020521,2]
[408227861,1773268243262,-1000.0,0.00020521,2]
[408227862,1773268243271,-1000.0,0.00020521,2]
[408227863,1773268243280,-717.042607,0.00020521,2]
[408227864,1773268243289,-717.042607,0.00020521,2]
[408227865,1773268243298,-355.617915,0.00020521,2]
[408227866,1773268243307,-717.042607,0.00020521,2]
[408227867,1773268243316,-355.617915,0.00020521,2]
[408227868,1773268243326,-717.042607,0.00020521,2]
[408227869,1773268243335,-355.617915,0.00020521,2]
[408227870,1773268243344,-355.617915,0.00020521,2]
[408227871,1773268243353,-3102.672497,0.00020521,2]
[408227872,1773268243362,-3102.672497,0.00020521,2]
[408227873,1773268243371,-3102.672497,0.00020521,2]
[408227874,1773268243380,-3102.672497,0.00020521,2]
[408227875,1773268243389,-204.106821,0.00020521,2]
[408227876,1773268243399,-952.490235,0.00020521,2]
[408227877,1773268243408,-2253.089213,0.00020521,2]
[408227878,1773268243418,-952.490235,0.00020521,2]
[408227879,1773268243428,-2253.089213,0.00020521,2]
[408227880,1773268243437,-952.490235,0.00020521,2]
[408227881,1773268243447,-2253.089213,0.00020521,2]
[408227882,1773268243456,-952.490235,0.00020521,2]
[408227883,1773268243466,-2253.089213,0.00020521,2]
[408227884,1773268243475,-151.0,0.00020521,2]
[408227885,1773268243485,-151.0,0.00020521,2]
[408227886,1773268243497,-151.0,0.00020521,2]
[408227887,1773268243506,-151.0,0.00020521,2]
[408227888,1773268243516,-151.0,0.00020521,2]
[408227889,1773268243526,-200.545165,0.00020521,2]
[408227890,1773268243536,-151.0,0.00020521,2]
[408227891,1773268243545,-167.759206,0.00020548,2]
[408227892,1773268243555,-1000.0,0.00020548,2]
[408227893,1773268243567,-498.0,0.00020557,2]
[408227894,1773268243577,-852.0,0.00020557,2]
[408227895,1773268243586,-586.0,0.00020567,5]
[408227896,1773268243595,-150.0,0.0002057,2]
[408227897,1773268243604,-250.0,0.0002057,2]
[408227898,1773268243614,-150.0,0.0002057,2]
[408227899,1773268243623,-250.0,0.0002057,2]
[408227900,1773268243633,-165.88475681,0.00020573,2]
[408227901,1773268243642,-200.0,0.00020606,2]
[408227902,1773268243651,-168.0,0.00020611,2]
[408227903,1773268243660,-151.0,0.00020611,2]
[408227904,1773268243670,-151.0,0.00020611,2]
[408227905,1773268243679,-151.0,0.00020611,2]
[408227906,1773268243688,-151.0,0.00020611,2]
[408227907,1773268243698,-498.0,0.00020611,2]
[408227908,1773268243707,-852.0,0.00020611,2]
[408227909,1773268243717,-586.0,0.00020622,5]
[408227910,1773268243726,-150.0,0.00020625,2]
[408227911,1773268243735,-151.0,0.00020625,2]
[408227912,1773268243747,-151.0,0.00020625,2]
[408227913,1773268243756,-498.0,0.00020666,2]
[408227914,1773268243765,-852.0,0.00020666,2]
[408227915,1773268243775,-586.0,0.00020677,5]
[408227916,1773268243784,-150.0,0.0002068,2]
[408227917,1773268243793,-498.0,0.00020721,2]
[408227918,1773268243802,-852.0,0.00020721,2]
[408227919,1773268243811,-209.07,0.00020721,2]
[408227920,1773268243820,-586.0,0.00020731,5]
[408227921,1773268243830,-150.0,0.00020734,2]
[408227922,1773268243839,-177.877144,0.00020735,2]
[408227923,1773268243848,-177.877144,0.00020735,2]
[408227924,1773268243857,-177.877144,0.00020735,2]
[408227925,1773268243867,-177.877144,0.00020735,2]
[408227926,1773268243876,-498.0,0.00020776,2]
[408227927,1773268243885,-852.0,0.00020776,2]
[408227928,1773268243895,-533.36,0.00020779,2]
[408227929,1773268243904,-599.0,0.00020786,5]
[408227930,1773268243913,-420.23,0.0002079,2]
[408227931,1773268243922,-399.12,0.0002079,2]
[408227932,1773268243932,-151.0,0.0002079,2]
[408227933,1773268243941,-151.0,0.0002079,2]
[408227934,1773268243950,-1158.518815,0.0002079,2]
[408227935,1773268243960,-1158.518815,0.0002079,2]
[408227936,1773268243969,-1158.518815,0.0002079,2]
[408227937,1773268243978,-1158.518815,0.0002079,2]
[408227938,1773268243987,-218.779312,0.0002079,2]
[408227939,1773268243996,-218.779312,0.0002079,2]
[408227940,1773268244005,-218.779312,0.0002079,2]
[408227941,1773268244015,-218.779312,0.0002079,2]
[408227942,1773268244024,-151.0,0.0002079,2]
[408227943,1773268244034,-2000.0,0.00020808,2]
[408227944,1773268244043,-200.0,0.00020812,2]
[408227945,1773268244052,-1000.0,0.00020822,2]
[408227946,1773268244061,-498.0,0.0002083,2]
[408227947,1773268244070,-852.0,0.0002083,2]
[408227948,1773268244079,-151.0,0.00020844,2]
[408227949,1773268244088,-151.0,0.00020844,2]
[408227950,1773268244097,-1449.391515,0.00020844,2]
[408227951,1773268244106,-1449.391515,0.00020844,2]
[408227952,1773268244115,-1449.391515,0.00020844,2]
[408227953,1773268244124,-1449.391515,0.00020844,2]
[408227954,1773268244133,-717.042607,0.00020844,2]
[408227955,1773268244143,-717.042607,0.00020844,2]
[408227956,1773268244152,-355.617915,0.00020844,2]
[408227957,1773268244161,-717.042607,0.00020844,2]
[408227958,1773268244320,-355.617915,0.00020844,2]
[408227959,1773268244330,-717.042607,0.00020844,2]
[408227960,1773268244340,-355.617915,0.00020844,2]
[408227961,1773268244351,-355.617915,0.00020844,2]
[408227962,1773268244361,-3102.672497,0.00020844,2]
[408227963,1773268244370,-3102.672497,0.00020844,2]
[408227964,1773268244380,-3102.672497,0.00020844,2]
[408227965,1773268244389,-3102.672497,0.00020844,2]
[408227966,1773268244399,-952.490235,0.00020844,2]
[408227967,1773268244408,-2253.089213,0.00020844,2]
[408227968,1773268244417,-952.490235,0.00020844,2]
[408227969,1773268244427,-2253.089213,0.00020844,2]
[408227970,1773268244436,-952.490235,0.00020844,2]
[408227971,1773268244445,-2253.089213,0.00020844,2]
[408227972,1773268244454,-952.490235,0.00020844,2]
[408227973,1773268244466,-2253.089211,0.00020844,2]
[408227974,1773268244478,-500.0,0.00020873,2]
[408227975,1773268244489,-500.0,0.00020873,2]
[408227976,1773268244499,-500.0,0.00020873,2]
[408227977,1773268244511,-500.0,0.00020873,2]
[408227978,1773268244521,-150.0,0.00020873,2]
[408227979,1773268244531,-150.0,0.00020873,2]
[408227980,1773268244540,-507.92593755,0.00020885,2]
[408227981,1773268244549,-864.18411228,0.00020885,2]
[408227982,1773268244558,-198.88319627,0.0002089,2]
[408227983,1773268244567,-151.0,0.00020899,2]
[408227984,1773268244576,-350.0,0.00020899,2]
[408227985,1773268244585,-150.0,0.00020899,2]
[408227987,1773268244594,-151.0,0.00020899,2]
[408227989,1773268244603,-151.0,0.00020899,2]
[408227991,1773268244613,-151.0,0.00020899,2]
[408227992,1773268244622,-151.0,0.00020899,2]
[408227993,1773268244631,-758.580963,0.00020899,2]
[408227994,1773268244641,-500.0,0.00020899,2]
[408227995,1773268244651,-758.580963,0.00020899,2]
[408227996,1773268244660,-758.580963,0.00020899,2]
[408227998,1773268244669,-758.580963,0.00020899,2]
[408228000,1773268244678,-151.0,0.00020899,2]
[408228002,1773268244687,-165.33508127,0.00020899,2]
[408228004,1773268244697,-151.0,0.00020899,2]
[408228006,1773268244706,-151.0,0.00020899,2]
[408228008,1773268244715,-177.877144,0.00020899,2]
[408228010,1773268244724,-177.877144,0.00020899,2]
[408228012,1773268244733,-177.877144,0.00020899,2]
[408228014,1773268244742,-177.877144,0.00020899,2]
[408228015,1773268244751,-151.0,0.00020899,2]
[408228016,1773268244760,-268.921368,0.00020899,2]
[408228017,1773268244769,-151.0,0.00020899,2]
[408228018,1773268244778,-151.0,0.00020899,2]
[408228019,1773268244787,-1158.518815,0.00020899,2]
[408228020,1773268244796,-1158.518815,0.00020899,2]
[408228021,1773268244805,-1158.518815,0.00020899,2]
[408228022,1773268244814,-1158.518824,0.00020899,2]
[408228023,1773268244823,-218.779312,0.00020899,2]
[408228024,1773268244832,-218.779312,0.00020899,2]
[408228026,1773268244842,-218.779312,0.00020899,2]
[408228027,1773268244851,-218.779309,0.00020899,2]
[408228028,1773268244859,-80574.04966491,0.000209,30]
[408228029,1773268244869,-154.621444,0.000209,2]
[408228030,1773268244878,-151.0,0.000209,2]
[408228031,1773268244887,-151.0,0.000209,2]
[408228032,1773268244896,-151.0,0.000209,2]
[408228033,1773268244906,-277.52832,0.000209,2]
[408228034,1773268244917,-758.580963,0.000209,2]
[408228035,1773268244926,-758.580963,0.000209,2]
[408228036,1773268244937,-758.580963,0.000209,2]
[408228037,1773268244946,-758.580963,0.000209,2]
[408228038,1773268244955,-151.0,0.000209,2]
[408228039,1773268244964,-151.0,0.000209,2]
[408228040,1773268244973,-151.0,0.000209,2]
[408228041,1773268244982,-151.0,0.000209,2]
[408228042,1773268244991,-151.0,0.000209,2]
[408228043,1773268245001,-1449.391515,0.000209,2]
[408228044,1773268245009,-1449.391515,0.000209,2]
[408228045,1773268245018,-1449.391515,0.000209,2]
[408228046,1773268245028,-1449.391515,0.000209,2]
[408228047,1773268245038,-177.877144,0.000209,2]
[408228048,1773268245047,-177.877144,0.000209,2]
[408228049,1773268245056,-177.877144,0.000209,2]
[408228050,1773268245068,-177.877144,0.000209,2]
[408228052,1773268245077,-151.0,0.000209,2]
[408228054,1773268245086,-151.0,0.000209,2]
[408228056,1773268245096,-287.242674,0.000209,2]
[408228057,1773268245105,-717.042607,0.000209,2]
[408228058,1773268245115,-717.042607,0.000209,2]
[408228059,1773268245124,-355.617915,0.000209,2]
[408228060,1773268245134,-717.042607,0.000209,2]
[408228061,1773268245145,-355.617915,0.000209,2]
[408228062,1773268245154,-717.042607,0.000209,2]
[408228063,1773268245163,-355.617915,0.000209,2]
[408228064,1773268245172,-355.617915,0.000209,2]
[408228065,1773268245182,-3102.672497,0.000209,2]
[408228066,1773268245191,-3102.672497,0.000209,2]
[408228067,1773268245201,-3102.672497,0.000209,2]
[408228068,1773268245210,-3102.672497,0.000209,2]
[408228069,1773268245219,-1500.0,0.00020968,2]
[408228070,1773268245228,-1500.0,0.00020968,2]
[408228071,1773268245237,-1000.0,0.00020968,2]
[408228072,1773268245248,-1500.0,0.00020968,2]
[408228073,1773268245257,-1500.0,0.00020968,2]
[408228074,1773268245266,-209.08,0.00020995,2]
[408228075,1773268245275,-168.0,0.00020998,2]
[408228076,1773268245284,-717.042607,0.00021008,2]
[408228077,1773268245294,-717.042607,0.00021008,2]
[408228078,1773268245302,-355.617915,0.00021008,2]
[408228079,1773268245312,-717.042607,0.00021008,2]
[408228080,1773268245321,-355.617915,0.00021008,2]
[408228081,1773268245331,-717.042601,0.00021008,2]
[408228082,1773268245340,-355.617915,0.00021008,2]
[408228083,1773268245350,-355.617915,0.00021008,2]
[408228084,1773268245360,-3102.672497,0.00021008,2]
[408228085,1773268245371,-3102.672497,0.00021008,2]
[408228086,1773268245380,-3102.672497,0.00021008,2]
[408228087,1773268245389,-3102.672497,0.00021008,2]
[408228088,1773268245399,-151.0,0.00021031,2]
[408228089,1773268245408,-3724.0,0.00021031,2]
[408228090,1773268245417,-533.36,0.00021053,2]
[408228091,1773268245427,-177.877144,0.00021068,2]
[408228092,1773268245437,-177.877144,0.00021068,2]
[408228093,1773268245446,-177.877144,0.00021068,2]
[408228094,1773268245455,-177.877153,0.00021068,2]
[408228095,1773268245465,-151.0,0.00021068,2]
[408228096,1773268245475,-844.53029886,0.00021068,2]
[408228097,1773268245486,-1500.0,0.00021068,2]
[408228098,1773268245498,-1500.0,0.00021068,2]
[408228099,1773268245508,-1500.0,0.00021068,2]
[408228100,1773268245517,-1500.0,0.00021068,2]
[408228101,1773268245527,-1500.0,0.00021068,2]
[408228102,1773268245536,-1500.0,0.00021068,2]
[408228103,1773268245544,-1500.0,0.00021068,2]
[408228104,1773268245554,-1057.16695181,0.00021068,2]
[408228105,1773268245565,-1500.0,0.00021068,2]
[408228106,1773268245575,-1500.0,0.00021068,2]
[408228107,1773268245584,-1500.0,0.00021068,2]
[408228108,1773268245593,-1500.0,0.00021068,2]
[408228109,1773268245603,-1500.0,0.00021068,2]
[408228110,1773268245614,-1500.0,0.00021068,2]
[408228111,1773268245623,-1500.0,0.00021068,2]
[408228112,1773268245633,-1500.0,0.00021068,2]
[408228113,1773268245642,-1500.0,0.00021068,2]
[408228114,1773268245652,-1500.0,0.00021068,2]
[408228115,1773268245660,-1500.0,0.00021068,2]
[408228116,1773268245669,-444.76980756,0.00021068,2]
[408228117,1773268245679,-1500.0,0.00021068,2]
[408228118,1773268245687,-1226.96632032,0.00021068,2]
[408228119,1773268245696,-1500.0,0.00021068,2]
[408228120,1773268245706,-1500.0,0.00021068,2]
[408228121,1773268245715,-1500.0,0.00021068,2]
[408228122,1773268245724,-1500.0,0.00021068,2]
[408228123,1773268245734,-1500.0,0.00021068,2]
[408228124,1773268245743,-6316.07,0.00021069,2]
[408228125,1773268245752,-465.78,0.00021089,2]
[408228126,1773268245762,-1000.0,0.00021096,2]
[408228127,1773268245771,-3425.01,0.000211,2]
[408228128,1773268245780,-191.5,0.000211,2]
[408228129,1773268245789,-151.0,0.000211,2]
[408228130,1773268245799,-151.0,0.000211,2]
[408228131,1773268245807,-1449.391515,0.000211,2]
[408228132,1773268245816,-1449.391515,0.000211,2]
[408228133,1773268245825,-1449.391515,0.000211,2]
[408228134,1773268245834,-1449.391515,0.000211,2]
[408228135,1773268245844,-781.74,0.00021128,2]
[408228136,1773268245854,-500.0,0.00021181,2]
[408228137,1773268245863,-500.0,0.00021181,2]
[408228139,1773268245872,-500.0,0.00021181,2]
[408228140,1773268245882,-500.0,0.00021181,2]
[408228141,1773268245892,-168.0,0.00021216,2]
[408228142,1773268245901,-168.0,0.00021218,2]
[408228143,1773268245910,-168.0,0.00021232,2]